Workbook

Sheet 6月
A1: 蚌埠学院2024年7月预算项目执行考核表（教科研经费因建设期等情况不同暂时不列入考核范围）
R2: 单位：万元
A3: 序号 | B3: 部门 | C3: 项目 | D3: 预算总指标金额 | E3: 是否政府采购 | F3: 累计总支出金额 | G3: 实际支出预算执行进度（%） | H3: 按序时进度每月得分 | R3: 备注
H4: 3月 （分值1分） | I4: 4月 （分值2分） | J4: 5月 （分值5分） | K4: 6月 （分值6分） | L4: 7月 （分值8分） | M4: 8月 （分值10分） | N4: 9月 （分值11分） | O4: 10月 （分值12分） | P4: 11月 （分值15分） | Q4: 累计得分 （总分70分）
A5: 1 | B5: 图书馆 | C5: 图书馆馆藏资源（电子资源）项目 | D5: 100.00 | E5: 是 | F5: 0.00 | G5: =F8/D8 -> 13.00% | H5: 0 | I5: 0 | J5: 0 | K5: 0 | L5: 0 | Q5: =SUM(H5:P8) -> 0 | R5: 3月底要求达到的序时进度为27%；4月底要求达到的序时进度为36%；5月底要求达到的序时进度为45%；6月底要求达到的序时进度为55%，7月底要求达到的序时进度为64%；8月底要求达到的序时进度为73%；9月底要求达到的序时进度为82%；10月底要求达到的序时进度为91%；11月底要求达到的序时进度为100%.
A6: 2 | C6: 图书馆馆藏资源（期刊报纸）项目 | D6: 30.00 | E6: 否 | F6: 29.90
A7: 3 | C7: 图书馆馆藏资源（纸质图书）项目 | D7: 100.00 | E7: 是 | F7: 0.00
C8: 合计 | D8: =SUM(D5:D7) -> 230.00 | F8: =SUM(F5:F7) -> 29.90
A9: 4 | B9: 党政办公室 | C9: 档案信息化建设 | D9: 14.20 | E9: 否 | F9: 0.00 | G9: =F11/D11 -> 27.65% | H9: 0 | I9: 0 | J9: 0 | K9: 0 | L9: 0 | Q9: =SUM(H9:P11) -> 0
A10: 5 | C10: 国际交流 | D10: 100.00 | E10: 否 | F10: 31.58
C11: 合计 | D11: =SUM(D9:D10) -> 114.20 | F11: =SUM(F9:F10) -> 31.58
A12: 6 | B12: 信息化与数据管理中心 | C12: 等保测评项目 | D12: 25.00 | E12: 否 | F12: 0.00 | G12: 0.00% | H12: 0 | I12: 0 | J12: 0 | K12: 0 | L12: 0 | Q12: =SUM(H12:P12) -> 0
A13: 7 | B13: 党委宣传部 | C13: 校史馆建设 | D13: 20.00 | E13: 否 | F13: 0.00 | G13: =F13/D13 -> 0.00% | H13: 0 | I13: 0 | J13: 0 | K13: 0 | L13: 0 | Q13: 0
A14: 8 | B14: 纪委 | C14: 谈话室标准化建设专项 | D14: 15.00 | E14: 否 | F14: 0.00 | G14: 0.00% | H14: 0 | I14: 0 | J14: 0 | K14: 0 | L14: 0 | Q14: 0
A15: 9 | B15: 人事处、保卫处 | C15: 保安托管 | D15: 182.35 | E15: 是 | F15: 75.97 | G15: 41.66% | H15: 0 | I15: 0 | J15: 0 | K15: 0 | L15: 0 | Q15: 0
A16: 10 | B16: 教务处 | C16: 实验运行与维护费(分配各学院） | D16: 222.30 | E16: 否 | F16: 185.00 | G16: 83.22%
A17: ① | B17: 材料与化学工程学院 | C17: 实验运行与维护费 | D17: 30.00 | E17: 否 | F17: 9.96 | G17: 33.20% | H17: 0 | I17: 0 | J17: 0 | K17: 0 | L17: 0 | Q17: 0
A18: ② | B18: 食品与生物工程学院 | C18: 实验运行与维护费 | D18: 25.00 | E18: 否 | F18: 14.50 | G18: 58.00% | H18: 1 | I18: 2 | J18: 5 | K18: 6 | L18: 0 | Q18: 14
A19: ③ | B19: 机械与车辆工程学院 | C19: 实验运行与维护费 | D19: 15.00 | E19: 否 | F19: 1.74 | G19: 11.60% | H19: 0 | I19: 0 | J19: 0 | K19: 0 | L19: 0 | Q19: 0
A20: ④ | B20: 土木与水利工程学院 | C20: 实验运行与维护费 | D20: 20.00 | E20: 否 | F20: 10.50 | G20: 52.50% | H20: 0 | I20: 0 | J20: 0 | K20: 0 | L20: 0 | Q20: 0
A21: ⑤ | B21: 电子与电气工程学院 | C21: 实验运行与维护费 | D21: 15.00 | E21: 否 | F21: 0.83 | G21: 5.53% | H21: 0 | I21: 0 | J21: 0 | K21: 0 | L21: 0 | Q21: 0
A22: ⑥ | B22: 计算机科学工程学院 | C22: 实验运行与维护费 | D22: 15.00 | E22: 否 | F22: 1.42 | G22: 9.47% | H22: 0 | I22: 0 | J22: 0 | K22: 0 | L22: 0 | Q22: 0
A23: ⑦ | B23: 数理学院 | C23: 实验运行与维护费 | D23: 15.00 | E23: 否 | F23: 7.09 | G23: 47.27% | H23: 0 | I23: 0 | J23: 0 | K23: 0 | L23: 0 | Q23: 0
A24: ⑧ | B24: 经济与管理学院 | C24: 实验运行与维护费 | D24: 10.00 | E24: 否 | F24: 0.47 | G24: 4.70% | H24: 0 | I24: 0 | J24: 0 | K24: 0 | L24: 0 | Q24: 0
A25: ⑨ | B25: 艺术设计学院 | C25: 实验运行与维护费 | D25: 10.00 | E25: 否 | F25: 0.00 | G25: 0.00% | H25: 0 | I25: 0 | J25: 0 | K25: 0 | L25: 0 | Q25: 0
A26: ⑩ | B26: 外国语学院 | C26: 实验运行与维护费 | D26: 10.00 | E26: 否 | F26: 0.53 | G26: 5.30% | H26: 0 | I26: 0 | J26: 0 | K26: 0 | L26: 0 | Q26: 0
A27: ⑪ | B27: 文学与教育学院 | C27: 实验运行与维护费 | D27: 10.00 | E27: 否 | F27: 7.22 | G27: 72.20% | H27: 0 | I27: 0 | J27: 0 | K27: 0 | L27: 8 | Q27: 8
A28: ⑫ | B28: 音乐与舞蹈学院 | C28: 实验运行与维护费 | D28: 10.00 | E28: 否 | F28: 2.60 | G28: 26.00% | H28: 0 | I28: 0 | J28: 0 | K28: 0 | L28: 0 | Q28: 0
A29: 11 | B29: 基建处 | C29: 理工楼工程款 | D29: 3,139.46 | E29: 否 | F29: 1,337.74 | G29: 42.61% | H29: 1 | I29: 0 | J29: 0 | K29: 0 | L29: 0 | Q29: =SUM(H29:P38) -> 1
A30: 12 | C30: 学生宿舍13#、14#楼工程款尾款 | D30: 632.13 | E30: 是 | F30: 464.48 | G30: 73.48%
A31: 13 | C31: 校园道路修缮升级 | D31: 300.00 | E31: 是 | F31: 0.00 | G31: 0.00%
A32: 14 | C32: 第二田径运动场修缮改造项目 | D32: 25.00 | E32: 否 | F32: 0.00 | G32: 0.00%
A33: 15 | C33: 校园东北角篮球场翻新 | D33: 30.00 | E33: 否 | F33: 0.00 | G33: 0.00%
A34: 16 | C34: 礼堂装修设计费 | D34: 13.96 | E34: 否 | F34: 0.00 | G34: 0.00%
A35: 17 | C35: 高知公寓二期规划及建筑设计费 | D35: 63.20 | E35: 否 | F35: 0.00 | G35: 0.00%
A36: 18 | C36: 9#-16#学生公寓道路排水设计费 | D36: 5.35 | E36: 否 | F36: 0.00 | G36: 0.00%
A37: 19 | C37: 学生宿舍3-4号楼维修改造 | D37: 600.00 | E37: 是 | F37: 0.00 | G37: 0.00%
C38: 合计 | D38: =SUM(D29:D37) -> 4,809.10 | F38: =SUM(F29:F37) -> 1,802.22 | G38: =F38/D38 -> 37.48%
A39: 20 | B39: 后勤管理处 | C39: 物业托管、绿化保洁 | D39: 900.00 | E39: 是 | F39: 438.72 | G39: =F42/D42 -> 50.38% | H39: 0 | I39: 0 | J39: 0 | K39: 0 | L39: 0 | Q39: =SUM(H39:P42) -> 0
A40: 21 | C40: 宿舍配套设施维修 | D40: 100.00 | E40: 否 | F40: 0.00
A41: 22 | C41: 学生公寓13#、14#楼配套家具（尾款） | D41: 131.40 | E41: 是 | F41: 131.33
C42: 合计 | D42: =SUM(D39:D41) -> 1,131.40 | F42: =SUM(F39:F41) -> 570.05
A43: 23 | B43: 国有资产管理处 | C43: 办公设备购置 | D43: 31.35 | E43: 是 | F43: 31.21 | G43: =F43/D43 -> 99.55% | H43: 0 | I43: 0 | J43: 5 | K43: 6 | L43: 8 | Q43: =SUM(H43:P43) -> 19
A44: 24 | B44: 工会 | C44: 定点乡村振兴建设 | D44: 20.00 | E44: 否 | F44: 0.23 | G44: 1.15% | H44: 0 | I44: 0 | J44: 0 | K44: 0 | L44: 0 | Q44: =SUM(H44:P44) -> 0
A45: 25 | B45: 文学与教育学院 | C45: 学前教育专业师范专业认证专项资金 | D45: 44.45 | E45: 否 | F45: 34.12 | G45: 76.76% | H45: 0 | I45: 0 | J45: 5 | K45: 6 | L45: 8 | Q45: 19
A46: 26 | B46: 学生处 | C46: “一站式”学生社区综合服务中心建设项目 | D46: 10.81 | E46: 否 | F46: 0.00 | G46: 0.00% | H46: 0 | I46: 0 | J46: 0 | K46: 0 | L46: 0 | Q46: 0
A47: 27 | B47: 马克思主义学院 | C47: 大思政课专项经费 | D47: 30.00 | E47: 否 | F47: 0.09 | G47: 0.30% | H47: 0 | I47: 0 | J47: 0 | K47: 0 | L47: 0 | Q47: 0
A48: 28 | B48: 体育教学部 | C48: 运动场地维修及篮球架更换 | D48: 17.00 | E48: 否 | F48: 0.00 | G48: 0.00% | H48: 0 | I48: 0 | J48: 0 | K48: 0 | L48: 0 | Q48: 0
A49: 29 | B49: 组织部 | C49: 高校党建“双创”项目经费 | D49: 25.50 | E49: 否 | F49: 25.50 | G49: =F51/D51 -> 100.00% | H49: 0 | I49: 0 | J49: 5 | K49: 6 | L49: 8 | Q49: =SUM(H49:P51) -> 19
A50: 30 | C50: “强基层、提质量、创品牌”三年行动计划专项经费 | D50: 11.50 | E50: 否 | F50: 11.50
C51: 合计 | D51: =SUM(D49:D50) -> 37.00 | F51: =SUM(F49:F50) -> 37.00
A52: 31 | B52: 基建处等 | C52: 5G及人工智能产教融合创新创业中心（结转资金） | D52: 2741.90 | E52: 是 | F52: 359.20 | G52: =F52/D52 -> 13.10% | H52: 0 | I52: 0 | J52: 0 | K52: 0 | L52: 0 | Q52: =SUM(H52:P52) -> 0
B53: 总计 | D53: =SUM(D8+D11+D12+D13+D14+D15+D16+D38+D42+D43+D44+D45+D46+D47+D48+D51+D52) -> 9,681.86 | F53: =SUM(F8+F11+F12+F13+F14+F15+F16+F38+F42+F43+F44+F45+F46+F47+F48+F51+F52) -> 3,156.57
A54: 注：1、本表根据《蚌埠学院预算执行考核管理办法（试行）》制订，具体计算过程请参考本办法细则；预算申报、使用、调整共计得分为30分，预算执行总分为70分。本表仅按月统计预算执行得分，预算申报、使用、调整的30分年底时一起合并计入总分，本表暂时不体现。 2、本表中累计总支出金额取数为7月31日当天金额，预算总指标金额为年初预算下达金额+年中追加指标金额数； 3、本表所有金额保留至小数点后两位。
